Cogmind - Beta 16.1 @@@ ROGUE MODE // 2026.04.18 @ 19:33:53 Player: beans Result: Destroyed by 82-1K5(R) with Subdweller Laser Performance ------------- Evolutions (0) 0 Regions Visited (3) 600 Robots Destroyed (33) 165 Value Destroyed (664) 664 Prototype IDs (13) 260 Alien Tech Used (0) 0 Bonus (-157) -157 TOTAL SCORE: 1532 Bonus ------- Friendly Fire -157 Cogmind --------- Core Integrity 0/250 Matter 20/300 Energy 92/100 System Corruption 1% Temperature Cool (6) Movement Core (50) Location -10/Subcaves Parts ------- > --- POWER (1) -------- (None) > --- PROPULSION (2) --- (None) > --- UTILITY (2) ------ (None) > --- WEAPON (2) ------- (None) > --- INVENTORY (5) ---- 1B-0RG's Assimilator Peak State ------------ > --- POWER ------------ (None) > --- PROPULSION ------- Subdweller Monowheel > --- UTILITY ---------- Large Storage Unit > --- WEAPON ----------- Rocket Launcher Rocket Launcher > --- INVENTORY -------- Scrap Shield Light Assault Rifle Barrage Gun 1B-0RG's Assimilator Shrapnel Trap [Rating: 14] Favorites ----------- Power None Propulsion Compact Wheel Leg Aluminum Leg Wheel Compact Wheel Utility Large Storage Unit Storage Large Storage Unit Weapon Light Assault Rifle Ballistic Gun Light Assault Rifle Launcher Rocket Launcher Build | -11 -10 -10 -10 ------- Run | Yrd Mat Min Sub Slots Evolved . | . . . . Power . | . . . . Propulsion . | . . . . Utility . | . . . . Weapon . | . . . . Parts Attached 14 | 4 4 2 4 Power . | . . . . Engine . | . . . . Core . | . . . . Reactor . | . . . . Propulsion 6 | 2 3 . 1 Treads . | . . . . Leg 2 | 2 . . . Wheel 4 | . 3 . 1 Hover . | . . . . Flight . | . . . . Utility 1 | . 1 . . Device . | . . . . Storage 1 | . 1 . . Processor . | . . . . Hackware . | . . . . Protection . | . . . . Artifact . | . . . . Weapon 7 | 2 . 2 3 Energy Gun . | . . . . Energy Cannon . | . . . . Ballistic Gun 3 | 2 . 1 . Ballistic Cannon . | . . . . Launcher 4 | . . 1 3 Special Weapon . | . . . . Impact Weapon . | . . . . Slashing Weapon . | . . . . Piercing Weapon . | . . . . Special Melee Weapon . | . . . . Unidentified Prototypes . | . . . . Parts Lost 7 | . . 1 6 Power . | . . . . Propulsion 3 | . . . 3 Utility . | . . . . Weapon 4 | . . 1 3 Highest Loss Streak 3 | . . 1 3 To Critical Strikes 1 | . . 1 . Average Backups 4 | . 3 5 4 Power . | . . . . Propulsion . | . . . . Utility . | . . . . Weapon 4 | . 3 5 3 Tool/Special . | . . . . Unused Backups 9 | . 3 . 6 Power . | . . . . Propulsion 2 | . 2 . . Utility 1 | . . . 1 Weapon 5 | . 1 . 4 Tool/Special 1 | . . . 1 Average Slot Usage (%) 61 | . 66 71 51 Leg 8 | . 26 . . Wheel 14 | . 1 28 14 Storage 12 | . 9 14 14 Ballistic Gun 15 | . 28 20 3 Launcher 9 | . . 7 18 Peak Build Rating 14 | 4 6 6 14 Average Rating 5 | 3 4 5 7 On Entrance 4 | . 4 6 6 Avg Prop Armor Cover (%) . | . . . . Naked Turns 4 | . . . 4 Heaviest Build 28 | 3 23 25 28 Greatest Support 32 | 20 32 32 32 Greatest Overweight (x) 9 | . 1 . 9 Average Overweight (x) . | . . . . Largest Inventory Capacity 15 | 5 15 15 15 Average Capacity 13 | 5 12 15 14 Most Carried 10 | 2 8 6 10 Average Carried 5 | . 3 5 6 Final Capacity 15 | 5 15 15 5 Final Carried 6 | . 6 5 5 Class Distribution -------------------- 100% | Mutant Dominant Class ---------------- Mutant | -10/Materials Mutant | -10/Mines Mutant | -10/Subcaves Resources | -11 -10 -10 -10 ----------- Run | Yrd Mat Min Sub Matter Collected 781 | 215 261 86 219 Remotely . | . . . . Salvage Created 839 | . 474 227 138 Parts 53 | . 26 24 3 Haulers Intercepted . | . . . . Recyclers Shooed 3 | . 3 . . Parts Field Recycled . | . . . . Retrieved Matter . | . . . . Parts Self-Destructed 2 | . . . 2 Prevented . | . . . . Parts Restored . | . . . . Kills | -11 -10 -10 -10 ------- Run | Yrd Mat Min Sub Combat Hostiles Destroyed 22 | . 8 10 4 Guns 9 | . 8 1 . AOE 13 | . . 9 4 Classes Destroyed 8 | . 5 1 2 Worker 4 | . . 4 . Builder 1 | . 1 . . Recycler 3 | . 2 1 . Watcher 2 | . 2 . . Swarmer 9 | . 3 6 . Grunt 9 | . 5 4 . Subdweller 4 | . . . 4 Guerrilla 1 | . . . 1 Best Kill Streak 6 | . 4 6 3 Combat Bots Only 3 | . 3 3 3 Max Kills in Single Turn 3 | . 1 3 1 Gunslinging . | . . . . Exploded 2 | . . 2 1 Melee . | . . . . Uniques/NPCs Destroyed . | . . . . Combat | -11 -10 -10 -10 -------- Run | Yrd Mat Min Sub Hostile Shots Fired 79 | . 37 21 21 Missed 25 | . 11 7 7 Hits 54 | . 26 14 14 Projectile 54 | . 26 14 14 Critical Strikes 2 | . . 1 1 Damage Taken 971 | . 251 189 531 Core 251 | . 65 37 149 Absorbed by Shields . | . . . . Core Remaining (%) 100 | 100 . . . Volleys Fired 93 | . 49 19 25 Largest 2 | . 2 2 2 Hottest 66 | . 40 40 66 Shots Fired 152 | . 98 22 32 Gun 104 | . 98 6 . Cannon . | . . . . Launcher 48 | . . 16 32 Special . | . . . . Kinetic 104 | . 98 6 . Thermal . | . . . . Explosive 48 | . . 16 32 Electromagnetic . | . . . . Robot Hit Streak 7 | . 7 2 7 Robot Miss Streak 6 | . 6 3 2 Penetration Max . | . . . . Secondary Targets 3 | . 2 1 . Max Gunslinging Chain 1 | . 1 1 . Shots Hit Robots 73 | . 51 9 13 Core Hits 64 | . 25 24 15 Critical Kills 1 | . 1 . . Critical Parts Destroyed 1 | . 1 . . Critical Strikes 2 | . 2 . . Destroy 2 | . 2 . . Melee Attacks . | . . . . Impact . | . . . . Slashing . | . . . . Piercing . | . . . . Sneak Attacks . | . . . . Combat Hostiles . | . . . . Follow-up Attacks . | . . . . Damage Inflicted 2644 | . 517 1022 1105 Guns 566 | . 517 49 . Cannons . | . . . . Explosions 2078 | . . 973 1105 Melee . | . . . . Ramming . | . . . . Kinetic 566 | . 517 49 . Thermal . | . . . . Explosive 2078 | . . 973 1105 Electromagnetic . | . . . . Impact . | . . . . Slashing . | . . . . Piercing . | . . . . Highest Corruption 1 | . 1 1 1 Average Corruption 1 | . 1 1 1 Corruption Purged . | . . . . Corruption Blocked . | . . . . Effects 12 | . 1 5 6 Message Errors 8 | . 1 2 5 Matter Fused 1 | . . 1 . Energy Discharges 2 | . . 1 1 Data Loss (major) 1 | . . 1 . Overload Shots . | . . . . Overflow Damage 119 | . . 50 69 Projectiles . | . . . . Explosions 119 | . . 50 69 Melee . | . . . . Knockbacks . | . . . . Impact . | . . . . Kinetic . | . . . . Secondary . | . . . . Self-Inflicted Damage 198 | . . 37 161 Shots 7 | . . 2 5 Rammed . | . . . . Targets Rammed . | . . . . Kicked . | . . . . Crushed . | . . . . Highest Temperature 4 | . 4 . . Average Temperature 1 | . 1 . . Received Heat Transfer 174 | . 66 54 54 Siege Activations . | . . . . Martial Activations . | . . . . Shielding Activations . | . . . . Robots Disrupted . | . . . . Combat Hostiles . | . . . . Robots Corrupted . | . . . . Combat Hostiles . | . . . . Parts Fried . | . . . . Impact Corruptions . | . . . . Robots Melted . | . . . . Combat Hostiles . | . . . . Parts Melted . | . . . . Heat Transferred . | . . . . Parts Sabotaged . | . . . . Parts Stolen . | . . . . Parts Stripped . | . . . . Power Chain Reactions . | . . . . Alert | -11 -10 -10 -10 ------- Run | Yrd Mat Min Sub Maximum Alert Level . | . . . . Low Security (%) 100 | 100 100 100 . Level 1 . | . . . . Level 2 . | . . . . Level 3 . | . . . . Level 4 . | . . . . Level 5 . | . . . . High Security . | . . . . Max Security . | . . . . Peak Influence 191 | . 60 191 . Initial 6 | . . 6 . Average 43 | . 19 73 . Influence Increases 608 | . 219 389 . Destroy 0b10 Robot/C 360 | . 160 200 . Destroy 0b10 Robot/NC 50 | . 25 25 . Destroy Leader 74 | . 34 40 . Disable Machine 15 | . . 15 . Destroy Structure 79 | . . 79 . Lose Combat Pursuer 30 | . . 30 . Influence Decreases 608 | . 202 239 167 Entered New Map 98 | . . 11 87 Time Decay 470 | . 202 218 50 Lost Part 40 | . . 10 30 Squads Dispatched 1 | . 1 . . Investigation . | . . . . Extermination . | . . . . Reinforcement 1 | . 1 . . Assault . | . . . . Garrison . | . . . . Intercept . | . . . . Searches Triggered . | . . . . Construction Impeded . | . . . . Haulers Reinforced . | . . . . Active Scanning Responses . | . . . . Cargo Convoy Interrupts . | . . . . Stealth | -11 -10 -10 -10 --------- Run | Yrd Mat Min Sub Distress Signals 1 | . 1 . . Communications Jammed . | . . . . Distress Signals . | . . . . Times Spotted 30 | . 12 10 8 Peak Tracking Total 4 | . 4 3 2 Tactical Retreats 1 | . . 1 . Traps | -11 -10 -10 -10 ------- Run | Yrd Mat Min Sub Traps Triggered 3 | . 1 . 2 Indirectly . | . . . . Trap Hack Attempts . | . . . . Triggered . | . . . . Disarmed . | . . . . Reprogrammed . | . . . . Reused . | . . . . Traps Extracted . | . . . . Installed 1 | . . . 1 Triggered . | . . . . Most Traps Carried 1 | . . . 1 Machines | -11 -10 -10 -10 ---------- Run | Yrd Mat Min Sub Machines Disabled 1 | . . 1 . Max in Single Turn 1 | . . 1 . Machines Repaired . | . . . . Machines Dismantled . | . . . . Machines Sabotaged . | . . . . Overloaded Fab Kills . | . . . . Hacking | -11 -10 -10 -10 --------- Run | Yrd Mat Min Sub Machines Accessed 2 | . . . 2 Terminals . | . . . . Fabricators . | . . . . Repair Stations . | . . . . Recycling Units . | . . . . Scanalyzers . | . . . . Garrison Access . | . . . . Total Hacks 5 | . . . 5 Successful 5 | . . . 5 Failed . | . . . . Catastrophic . | . . . . Database Lockouts . | . . . . Manual . | . . . . Terminals . | . . . . Fabricators . | . . . . Repair Stations . | . . . . Recycling Units . | . . . . Scanalyzers . | . . . . Garrison Access . | . . . . Terminal Hacks 5 | . . . 5 Record 4 | . . . 4 Proto ID Catalog 1 | . . . 1 Fabricator Hacks . | . . . . Repair Station Hacks . | . . . . Recycling Unit Hacks . | . . . . Scanalyzer . | . . . . Garrison Access Hacks . | . . . . Unauthorized Hacks . | . . . . Terminals . | . . . . Fabricators . | . . . . Repair Stations . | . . . . Recycling Units . | . . . . Scanalyzers . | . . . . Garrison Access . | . . . . Data Cores Recovered . | . . . . Used . | . . . . Hacking Detections . | . . . . Full Trace Events . | . . . . Feedback Events . | . . . . Feedback Blocked . | . . . . Robot Schematics Acquired . | . . . . Robots Built . | . . . . Authchips . | . . . . Time . | . . . . Total Robot Build Rating . | . . . . Part Schematics Acquired . | . . . . Parts Built . | . . . . Authchips . | . . . . Time . | . . . . Total Part Build Rating . | . . . . Part Studies Acquired . | . . . . Parts Repaired . | . . . . Time . | . . . . Parts Recycled . | . . . . Recycled Matter . | . . . . Retrieved Matter . | . . . . Retrieved Components . | . . . . Parts Scanalyzed . | . . . . Part Schematics Acquired . | . . . . Parts Damaged . | . . . . Bothacking | -11 -10 -10 -10 ------------ Run | Yrd Mat Min Sub Used RIF Installer . | . . . . Robots Hacked . | . . . . Non-combat . | . . . . Combat . | . . . . Robot Hacks Applied . | . . . . Relay Couplers Released . | . . . . Fabnet Peak Effective % . | . . . . Robots Rewired . | . . . . Allies Hacked . | . . . . Hacks Repelled . | . . . . Allies | -11 -10 -10 -10 -------- Run | Yrd Mat Min Sub Total Allies . | . . . . Largest Group . | . . . . Highest-Rated Group . | . . . . Highest-Rated Ally . | . . . . Total Orders . | . . . . Ally Attacks . | . . . . Total Damage . | . . . . Kills . | . . . . Allies Corrupted . | . . . . Allies Melted . | . . . . Intel | -11 -10 -10 -10 ------- Run | Yrd Mat Min Sub Active Infowar (turns) . | . . . . Robot Analysis Total . | . . . . Derelict Logs Recovered 1 | . . . 1 Drone Launches . | . . . . Drone Recoveries . | . . . . Exploration | -11 -10 -10 -10 ------------- Run | Yrd Mat Min Sub Turns Passed 1988 | 51 598 560 779 Spaces Moved 1336 | 48 282 443 563 Core 28 | 20 . . 8 Treads . | . . . . Legs 289 | 28 261 . . Wheels 1019 | . 21 443 555 Hover . | . . . . Flight . | . . . . Fastest Speed 50 | 50 90 100 50 Average Speed 120 | 90 155 100 120 Slowest Speed 500 | 120 190 100 500 Overloaded Moves . | . . . . Propulsion Burnouts . | . . . . Robots Hopped . | . . . . Potential Cave-ins . | . . . . Cave-ins Triggered . | . . . . Exploration Rate (%) 38 | 5 45 78 27 Regions Visited 3 Branch Regions 2 Pre-discovered Areas 2 | . . . 2 Known Exits Taken . | . . . . Unknown Exits Taken 3 | 1 1 1 . Scrap Searched 5 | . . 1 4 Spaces Dug 28 | . . . 28 Terrain Destroyed 296 | . . 113 183 Melee . | . . . . Projectile . | . . . . AOE 296 | . . 113 183 Terrain Rammed . | . . . . Walls Destroyed . | . . . . Machines Disabled . | . . . . Actions | -11 -10 -10 -10 --------- Run | Yrd Mat Min Sub Total 1579 | 55 356 537 631 Wait 95 | . 3 73 19 Move 1333 | 47 281 442 563 Hop . | . . . . Pick Up 25 | 4 13 . 8 Fast Attach . | . . . . Attach 13 | 4 4 1 4 Detach . | . . . . Swap 2 | . . 2 . Drop 17 | . 6 . 11 Fire 93 | . 49 19 25 Melee . | . . . . Ram . | . . . . Kick . | . . . . Crush . | . . . . Escape Stasis . | . . . . Rewire . | . . . . Trap 1 | . . . 1 Miscellaneous . | . . . . Route ------- -11/Scrapyard -10/Materials (discovered 2 exits: [*Mat] / [*Min]) -10/Mines (discovered 3 exits: [*Mat] / [*Exi] / *Sub) -10/Subcaves History --------- Turn | Location | Event 4 | -11/Scrapyard | Discovered new exit (range 16) 52 | -11/Scrapyard | Entered Materials 308 | -10/Materials | Build established: Mutant 413 | -10/Materials | Discovered new exit (range 15) 501 | -10/Materials | Discovered new exit (range 15) 650 | -10/Materials | Entered Mines 752 | -10/Mines | Discovered new exit (range 6) 794 | -10/Mines | Deemed a non-threat by the Exiles lab entrance 794 | -10/Mines | Discovered new exit (range 5) 1202 | -10/Mines | Discovered new exit (range 5) 1210 | -10/Mines | Entered Subcaves 1284 | -10/Subcaves | Core integrity fell below 50% 1314 | -10/Subcaves | Lost 3 parts (2n1w) 1579 | -10/Subcaves | Learned location of Zion (-6) 1660 | -10/Subcaves | Disturbed a concealed Subdweller 1664 | -10/Subcaves | Disturbed a concealed Subdweller 1679 | -10/Subcaves | Ambushed by Subdweller buried in earth 1685 | -10/Subcaves | Core integrity fell below 20% 1818 | -10/Subcaves | Visited Clippyterm 1822 | -10/Subcaves | Learned location of Deep Caves (-6) 1822 | -10/Subcaves | Learned Factory stockpile data 1888 | -10/Subcaves | Visited 4L-MR0's lab 1897 | -10/Subcaves | Found Prototype Special Melee Weapon 1989 | -10/Subcaves | Destroyed by 82-1K5(R) with Subdweller Laser Last Messages --------------- Procsplitter VL-GR5's Exoskeleton "Deathgrip" Powered Cannon Dropped Flamer. Dropped Lgt. Assault Rifle. Acquired Prototype Special Melee Weapon. Subatomizers dissect the Flamer. The unstable cave ceiling collapses. System corrupted: Energy discharge (-35). FP-IUK(R) destroyed. Dropped Shrapnel Trap. Installed Shrapnel Trap. Sub. Monowheel destroyed. Dropped Scrap Shield. Dropped Lgt. Assault Rifle. Dropped Prototype Special Melee Weapon. Dropped Rocket Launcher. Dropped Lrg. Storage Unit. Dropped Barrage Gun. Acquired Prototype Special Melee Weapon. Map ----- +----------------------------------------------------+ | ??????????????????# #??????????????????????????? | | ??????????????????# #??????????????????????????? | | ?????????????????## #??????????????????????????? | | ?????????#####?### #??????????????????????????? | | ?????????#"""### ####???????????????????????? | | ?????????#"" ## #???????????????????????? | | ?????????#"X ## ##???????????????????????? | | ?????????#"" ## #### #????????????????????????? | | ?????????#"""## ## #????????????????????????? | | ?????????####### #? #????????????????????????? | | ???????????????### ### #????????????????????????? | | ???????#####?###?# # #????????????????????????? | | ?????### ### ### ##???????????????????????? | | ????##"" " # #???????????????????????? | | ????#""" # ##??????????????????????? | | ????# "" # #??????????????????????? | | ????#" """ # ##??????????????????????? | | ??????#"" ##???????????????????????? | | ?????### ### #????????????????????????? | | ?????#" "## #????????????????????????? | | ?????#" "### ###??????????????????????? | | ?????# ""#?# # ###????????????????????? | | ?????#|[X"#?# # < ##???????????????????? | | ?????# |""#?#####" #???????????????????? | | ?????#"#""#?????# # #???????????????????? | | ?????#=#""#?????## ## @ ##???????????????????? | | ?????######??????# ## [ ##???????????????????? | | ????????????????? ### ] ! #???????????????????? | | ???????????????? ##?# [!] ##???????????????????? | | ???????????????# ###?## ^####????????????????????? | | ???????????????##????# ##??????????????????????? | | ?????????????????????# #??????????????????????? | | ????????????????###??## #??????????????????????? | | ???????????????## #?## #??????????????????????? | | ??????????????## ## ###????????????????????? | | ??????????????# R ###??????????????????? | | ??????????????### #??????????????????? | | ????????????????## #??????????????????? | | ?????????????????### #??????????????????? | | ???????????????????# #??????????????????? | | ???????????????# ## ##??????????????????? | | ???????????????# # ##???????????????????? | | ??????????????# ##????????????????????? | | ??????????????# #?????????????????????? | | ??????????????# ### #?????????????????????? | | ??????????????# #?? = #?????????????????????? | | ??????????????## ??? ??????????????????????? | | ???????????????#???#" ??????????????????????? | | ???????????????????# ??????????????????????? | | ???????????????????# ??????????????????????? | +----------------------------------------------------+ Best States ------------- Heat Dissipation 25 Energy Generation 5 Energy Capacity 100 Matter Stores 300 Matter Capacity 300 Sight Range 16 Terrain Scan Density 10 Evasion (%) 55 Item Schematics ----------------- None Robot Schematics ------------------ None Fabricated ------------ Nothing Repaired ---------- Nothing Studied --------- None Alien Tech Used ----------------- None Achievements -------------- None Challenges ------------ None Game ------ Seed FusionSigixScythe Manual? 0 Play Time 00:12:59 Cumulative 270.2 hours Start 2026.04.18 @ 19:15:15 End 2026.04.18 @ 19:33:53 Sessions 1 Manual Loads 0 Difficulty Rogue Special Mode None Game No. 713 Rogue 711 Adventurer 2 Explorer 0 Win Type - Total 0 Types 0/0/0/0/0/0/0/0/0/0 Lore% 68 Gallery% 64 Achievement% 44 Wizard Run 0 Options --------- Layout 2 ASCII 0 Keyboard 0 Movement Mouse Keybinds 0 Fullscreen 1 Font 24/Smallcaps Map View 50x44 Zoom Use 0% Tactical HUD 0 Map Filters NONE Filters NONE Steam 1 RUN: 2ff46e80-2fd3-4c08-9c51-539e694247b2